bitfinex-derivatives/quotes_ETHF0:USTF0_20250110
["timestamp","ask_amount","ask_price","bid_price","bid_amount"]
[1736530358022,0.30538,3275.0,3274.9,40.8]
[1736530358222,3.2078,3275.4,3274.9,40.8]
[1736530358525,3.62825954,3275.8,3274.4,3.2078]
[1736530358526,0.3054,3274.9,3274.4,0.30543]
[1736530358732,0.3054,3274.9,3274.2,6.3175811]
[1736530359026,3.2078,3275.0,3274.8,0.3054]
[1736530359420,0.4611,3275.3,3274.8,0.3054]
[1736530359620,0.4611,3275.3,3274.9,0.30539]
[1736530359621,0.76646,3275.3,3274.9,0.30539]
[1736530360024,0.30537,3275.2,3274.9,0.30539]
[1736530360224,0.76646,3275.3,3274.9,0.30539]
[1736530360438,3.2078,3275.6,3275.0,2.86497954]
[1736530360728,0.30532,3275.7,3275.0,2.86497954]
[1736530360928,0.30533,3275.6,3275.3,0.30535]
[1736530361230,0.30533,3275.6,3275.1,0.30538]
[1736530361426,0.30532,3275.7,3275.3,0.30535]
[1736530363127,0.30531,3275.8,3275.4,0.30535]
[1736530363318,0.45,3275.9,3274.9,3.2078]
[1736530363627,0.30533,3275.6,3275.2,0.30536]
[1736530363827,0.30533,3275.6,3274.9,3.2078]
[1736530363828,0.7553,3275.9,3275.5,0.30533]
[1736530364030,0.30532,3275.7,3274.9,3.2078]
[1736530364227,0.30532,3275.7,3275.3,0.30535]
[1736530364524,0.30532,3275.7,3275.5,40.8]
[1736530364730,0.75531,3275.9,3275.6,0.30533]
[1736530365028,0.75531,3275.9,3275.5,40.8]
[1736530365029,3.2078,3276.4,3275.5,40.8]
[1736530365233,3.51306,3276.4,3276.0,0.30528]
[1736530365422,3.2078,3276.4,3275.7,3.2078]
[1736530366125,0.3053,3276.0,3275.7,3.2078]
[1736530366326,3.2078,3276.4,3275.7,3.2078]
[1736530366536,0.3053,3276.0,3275.7,3.2078]
[1736530366825,3.2078,3276.0,3275.5,41.2371]
[1736530367022,3.2078,3276.0,3275.9,0.3053]
[1736530367223,3.6689,3276.5,3275.7,3.2078]
[1736530367427,3.6689,3276.5,3275.7,3.97111]
[1736530367625,3.6689,3276.5,3275.7,3.2078]
[1736530367932,0.30527,3276.3,3276.0,0.30529]
[1736530368231,3.6689,3276.5,3275.7,3.2078]
[1736530368628,0.30526,3276.4,3275.8,0.30531]
[1736530368831,3.51305,3276.5,3276.2,0.30527]
[1736530369522,3.2078,3276.5,3276.3,0.30526]
[1736530369930,3.51305,3276.5,3275.8,0.30531]
[1736530370229,3.51305,3276.5,3276.2,0.30527]
[1736530370430,3.2078,3276.5,3275.7,3.2078]
[1736530370731,3.51305,3276.5,3276.2,0.30527]
[1736530371224,3.2078,3276.5,3275.7,3.2078]
[1736530371426,3.51305,3276.5,3275.7,3.2078]
[1736530371830,0.30527,3276.3,3276.0,0.30529]
[1736530372022,3.2078,3276.5,3275.7,3.44829888]
[1736530372222,3.2078,3275.9,3275.7,0.24049888]
[1736530372431,3.51311,3275.9,3275.7,0.24049888]
[1736530372619,0.3053,3276.0,3275.8,0.30531]
[1736530373030,3.2078,3276.4,3275.9,0.3053]
[1736530373230,3.2078,3276.4,3275.5,44.0078]
[1736530373432,3.51306,3276.4,3276.1,0.30527]
[1736530373633,3.51306,3276.4,3276.2,0.30527]
[1736530373831,3.51306,3276.4,3275.5,44.0078]
[1736530373832,3.2078,3276.4,3276.3,0.30526]
[1736530374631,3.2078,3276.4,3275.8,0.76328]
[1736530374632,3.2078,3276.4,3276.2,0.30527]
[1736530374827,3.2078,3276.4,3276.3,0.30526]
[1736530375136,3.2078,3276.4,3275.7,0.4773]
[1736530375323,3.2078,3276.4,3275.5,40.8]
[1736530375324,3.97096,3276.4,3275.5,40.8]
[1736530375630,0.30532,3275.7,3275.5,41.10533]
[1736530376031,0.30531,3275.9,3275.7,0.30531]
[1736530376534,0.30531,3275.8,3275.6,0.30533]
[1736530376837,0.3053,3275.9,3275.7,0.30532]
[1736530377025,3.2078,3276.4,3275.7,0.76331]
[1736530377330,0.30525,3276.5,3276.3,0.30526]
[1736530377525,0.30526,3276.4,3275.8,0.30531]
[1736530377831,0.30527,3276.3,3276.1,0.30528]
[1736530378028,0.30526,3276.4,3276.2,0.30527]
[1736530378231,3.6805,3276.8,3275.8,0.76328]
[1736530378428,0.30525,3276.5,3276.3,0.30526]
[1736530378735,0.30524,3276.6,3275.9,0.76326]
[1736530379040,0.30527,3276.3,3276.1,0.30528]
[1736530379227,3.51306,3276.4,3275.7,1.01093533]
[1736530379429,3.51306,3276.4,3276.1,0.30527]
[1736530379737,3.51306,3276.4,3275.7,1.01093533]
[1736530379936,3.2078,3276.4,3276.3,0.30526]
[1736530380243,3.51305,3276.4,3276.2,0.30527]
[1736530380533,3.2078,3276.4,3275.7,0.24762533]
[1736530380735,0.30531,3275.8,3275.6,0.30532]
[1736530381028,3.2078,3276.3,3276.1,0.30528]
[1736530381235,3.2078,3276.3,3276.2,0.30527]
[1736530381738,0.30524,3276.6,3276.4,0.30525]
[1736530382231,11.83585208,3276.8,3276.4,3.2078]
[1736530382436,11.83585208,3276.8,3276.7,0.30523]
[1736530382628,0.3052,3277.0,3276.7,40.8]
[1736530382833,3.2078,3277.3,3277.2,0.30518]
[1736530383032,12.61612208,3277.4,3277.2,0.30518]
[1736530383225,12.61612208,3277.4,3276.7,40.8]
[1736530383226,3.2078,3277.3,3276.7,40.8]
[1736530383437,0.30522,3276.8,3276.7,40.8]
[1736530383737,0.30524,3276.6,3276.4,0.30525]
[1736530384235,3.51302,3276.8,3276.6,0.30523]
[1736530384627,3.2078,3276.8,3276.5,40.8]
[1736530384831,0.30523,3276.7,3276.5,41.10524]
[1736530385741,3.2078,3276.8,3276.4,0.30525]
[1736530385930,0.30524,3276.6,3276.4,0.30525]
[1736530386331,0.30524,3276.6,3276.5,40.8]
[1736530387137,0.4512,3276.7,3276.5,40.8]
[1736530387333,0.4512,3277.2,3276.5,40.8]
[1736530387538,0.4512,3277.2,3277.1,0.30519]
[1736530388431,0.4512,3277.2,3276.6,0.76308]
[1736530388730,0.75638,3277.2,3277.0,0.30519]
[1736530388938,0.4512,3277.2,3276.5,44.0078]
[1736530389134,0.76298,3277.1,3276.5,3.2078]
[1736530389334,0.30524,3276.6,3276.5,3.2078]
[1736530389537,0.30527,3276.3,3276.1,0.30528]
[1736530389741,0.30527,3276.2,3276.1,40.8]
[1736530390433,3.2078,3276.2,3275.6,0.30533]
[1736530390641,0.3053,3275.9,3275.7,0.30531]
[1736530390837,3.2078,3276.2,3275.4,3.2078]
[1736530391035,0.30533,3275.6,3275.5,40.8]
[1736530391639,0.30539,3275.0,3274.8,0.3054]
[1736530391834,3.2078,3274.9,3274.3,3.2078]
[1736530392135,0.30539,3275.0,3274.7,0.30541]
[1736530392536,3.2078,3275.3,3274.7,0.30541]
[1736530392736,0.3054,3274.8,3274.6,0.30542]
[1736530393037,3.5132,3274.9,3274.6,0.30541]
[1736530393541,3.5132,3274.9,3274.4,40.8]
[1736530393542,3.2078,3274.9,3274.4,40.8]
[1736530393740,0.78201,3274.8,3274.5,0.30543]
[1736530393936,0.4766,3274.8,3274.4,40.8]
[1736530394134,0.4766,3274.8,3274.6,0.30542]
[1736530394633,0.4766,3274.8,3274.4,40.8]
[1736530394634,0.30543,3274.5,3274.4,40.8]
[1736530394833,3.51323,3274.5,3274.4,40.8]
[1736530399930,0.30548,3274.0,3273.6,0.30551]
[1736530400133,0.30549,3273.9,3273.6,0.30551]
[1736530400341,3.51328,3274.0,3273.6,0.30551]
[1736530400534,3.2078,3274.0,3273.7,40.8]
[1736530400832,3.98981,3274.8,3273.9,3.2078]
[1736530401035,3.98981,3274.8,3274.0,0.7637]
[1736530401036,3.6844,3274.8,3274.0,0.7637]
[1736530401237,3.2078,3275.2,3274.9,0.30539]
[1736530401445,0.30536,3275.3,3274.9,41.10539]
[1736530401744,0.30537,3275.2,3274.9,41.10539]
[1736530401939,12.14123208,3275.0,3274.9,40.8]
[1736530402145,0.30538,3275.0,3274.9,40.8]
[1736530403745,4.5658,3275.1,3274.2,0.30546]
[1736530403936,3.2078,3275.0,3273.9,3.2078]
[1736530404140,0.30543,3274.5,3274.2,0.30545]
[1736530404347,0.30543,3274.5,3274.3,40.8]
[1736530404534,3.2078,3274.6,3274.3,40.8]
[1736530404734,0.30544,3274.4,3274.3,40.8]
[1736530406044,3.2078,3274.6,3274.3,40.8]
[1736530406344,3.2078,3274.6,3274.5,0.30543]
[1736530407046,0.878,3275.1,3274.3,40.8]
[1736530407344,0.30541,3274.8,3274.6,0.30542]
[1736530407544,0.878,3275.1,3274.3,44.0078]
[1736530407747,3.2078,3275.3,3274.7,3.2078]
[1736530408643,0.9525,3275.7,3275.2,0.30537]
[1736530408948,3.2078,3275.7,3275.6,0.30533]
[1736530409143,11.45285208,3276.0,3275.9,0.3053]
[1736530409337,9.93760308,3276.0,3275.9,0.3053]
[1736530409646,9.93760308,3276.0,3275.9,41.1053]
[1736530409940,0.30528,3276.2,3275.9,40.8]
[1736530410139,0.30527,3276.3,3276.0,0.30528]
[1736530410345,3.51306,3276.4,3275.9,40.8]
[1736530410847,3.2078,3276.4,3276.3,0.30526]
[1736530411045,3.2078,3276.9,3276.1,3.2078]
[1736530411243,3.2078,3276.9,3276.8,0.30522]
[1736530411549,3.2078,3276.9,3276.7,0.30522]
[1736530411750,0.30522,3276.8,3276.5,0.30524]
[1736530411943,3.2078,3276.9,3276.2,3.30647954]
[1736530412242,0.30522,3276.8,3276.5,0.30524]
[1736530412448,3.2078,3276.9,3276.2,3.30647954]
[1736530412844,3.2078,3276.9,3276.7,0.30522]
[1736530413146,3.2078,3276.9,3276.2,3.30647954]
[1736530413345,0.30526,3276.4,3276.1,0.30528]
[1736530413649,0.30526,3276.4,3275.9,40.8]
[1736530413650,3.2078,3276.5,3275.9,40.8]
[1736530413941,3.51305,3276.5,3275.9,40.8]
[1736530414139,3.2078,3276.5,3275.9,40.8]
[1736530414340,0.30527,3276.2,3276.0,0.30529]
[1736530414540,3.2078,3276.5,3275.6,3.2078]
[1736530414744,0.30526,3276.4,3276.1,0.30528]
[1736530414950,0.30528,3276.2,3275.9,0.30529]
[1736530415450,0.30527,3276.3,3275.9,0.30529]
[1736530415641,3.2078,3276.0,3275.9,0.30529]
[1736530415837,3.2078,3276.0,3275.2,3.2078]
[1736530416039,0.30528,3276.2,3275.9,0.3053]
[1736530416244,0.30531,3275.9,3275.6,0.30533]
[1736530416451,3.2078,3276.0,3275.5,0.30534]
[1736530416749,0.30529,3276.1,3275.8,0.3053]
[1736530417245,3.6524,3276.4,3275.8,0.3053]
[1736530417246,3.51309,3276.0,3275.8,0.3053]
[1736530417449,0.30529,3276.1,3275.8,0.3053]
[1736530417759,3.6524,3276.4,3275.8,0.3053]
[1736530417954,0.30529,3276.1,3275.8,0.3053]
[1736530419455,0.30531,3275.8,3275.5,0.30533]
[1736530419646,0.30532,3275.7,3275.4,41.10534]
[1736530420048,3.2078,3276.0,3275.4,40.8]
[1736530420250,3.51314,3275.5,3275.4,40.8]
[1736530421358,0.30537,3275.2,3274.9,3.51319]
[1736530421657,0.3054,3274.9,3274.6,0.30541]
[1736530421857,0.3054,3274.8,3274.6,0.30541]
[1736530422155,0.3054,3274.8,3274.7,40.8]
[1736530423548,0.30543,3274.6,3274.3,0.30545]
[1736530423746,3.2078,3274.6,3274.0,3.2078]
[1736530423960,3.51323,3274.6,3274.3,0.30545]
[1736530424158,0.30544,3274.5,3274.3,0.30545]
[1736530424460,0.30544,3274.5,3273.8,0.76373]
[1736530424655,0.30544,3274.5,3274.2,0.30546]
[1736530425053,3.2078,3274.6,3273.7,0.8901]
[1736530425268,0.30545,3274.3,3274.1,0.30547]
[1736530425559,0.30545,3274.3,3274.2,40.8]
[1736530426748,0.30543,3274.5,3274.2,40.8]
[1736530427050,3.2078,3274.6,3274.2,40.8]
[1736530427251,0.30545,3274.3,3274.2,40.8]
[1736530427651,0.30545,3274.3,3274.2,40.8]
[1736530427855,0.30548,3274.0,3273.7,0.3055]
[1736530428159,0.3055,3273.8,3273.6,0.30551]
[1736530428359,0.30549,3273.9,3273.6,0.30551]
[1736530428551,3.2078,3274.0,3273.5,3.2078]
[1736530428753,3.2078,3274.0,3273.9,0.30549]
[1736530428949,3.51328,3274.0,3273.8,0.30549]
[1736530429159,3.2078,3274.0,3273.5,3.2078]
[1736530429359,3.51328,3274.0,3273.9,40.8]
[1736530429551,3.51328,3274.0,3273.9,41.10549]
[1736530429757,3.2078,3274.0,3273.9,41.10549]
[1736530430052,3.51328,3274.0,3273.9,40.8]
[1736530430450,3.51328,3274.0,3273.9,41.10549]
[1736530430653,3.2078,3274.0,3273.9,40.8]
[1736530430957,3.51328,3274.0,3273.9,41.10549]
[1736530431156,3.2078,3274.0,3273.9,41.10549]
[1736530431353,3.2078,3274.4,3273.9,40.8]
[1736530431656,3.5132,3274.9,3274.1,3.2078]
[1736530431860,0.30538,3275.1,3274.9,0.30539]
[1736530432254,0.30538,3275.1,3274.5,3.2078]
[1736530432255,3.6423,3275.3,3274.5,3.2078]
[1736530432454,0.30539,3275.0,3274.8,0.3054]
[1736530432963,0.30539,3274.9,3274.8,0.3054]
[1736530433559,0.30539,3275.0,3274.6,0.30542]
[1736530433861,0.30539,3275.0,3274.8,0.3054]
[1736530434059,2.86497954,3275.2,3274.5,3.2078]
[1736530434257,6.07277954,3274.6,3273.0,6.07277954]
[1736530434559,3.2078,3274.6,3273.4,6.07277954]
[1736530434762,3.2078,3274.6,3274.3,0.30544]
[1736530434763,0.30544,3274.5,3274.3,0.30544]
[1736530434962,0.30541,3274.8,3274.5,0.30543]
[1736530435257,0.30544,3274.5,3274.2,0.30545]
[1736530435463,3.97127,3275.0,3274.3,40.8]
[1736530435666,0.30544,3274.4,3274.3,40.8]
[1736530437354,3.2078,3274.5,3273.5,0.9479]
[1736530437560,3.2078,3274.1,3273.7,0.30551]
[1736530437759,0.30549,3273.9,3273.7,0.30551]
[1736530438066,0.30549,3273.9,3273.5,0.9479]
[1736530438067,0.30549,3273.9,3273.8,41.1055]
[1736530438660,3.2078,3274.1,3273.8,40.8]
[1736530438865,0.30546,3274.3,3274.2,0.30546]
[1736530439064,3.2078,3274.6,3273.9,0.76373]
[1736530439256,3.2078,3275.1,3274.2,6.07277954]
[1736530439464,3.2078,3275.1,3274.4,0.76361]
[1736530439757,3.51318,3275.1,3275.0,0.30538]
[1736530440153,3.51318,3275.1,3274.3,0.9004]
[1736530440154,3.2078,3275.1,3274.3,0.9004]
[1736530440360,3.2078,3275.1,3274.7,0.3054]
[1736530440554,3.2078,3275.1,3274.3,0.9004]
[1736530440760,0.30543,3274.6,3274.5,0.30542]
[1736530440964,3.97126,3275.1,3274.7,0.30541]
[1736530441166,0.30542,3274.7,3274.6,0.30542]
[1736530442060,0.30544,3274.4,3274.3,0.4668]
[1736530442266,0.30544,3274.4,3274.3,0.77224]
[1736530442468,0.30546,3274.3,3274.2,0.30545]
[1736530442958,0.30548,3274.1,3274.0,0.30547]
[1736530443165,0.30549,3274.0,3273.9,0.30548]
[1736530443665,0.30547,3274.1,3274.0,0.30547]
[1736530443863,0.4619,3274.4,3273.8,0.4684]
[1736530444066,0.30549,3274.0,3273.9,0.30548]
[1736530444259,0.30551,3273.7,3273.6,0.77571]
[1736530444567,0.30551,3273.7,3273.6,0.30551]
[1736530445261,3.2078,3274.2,3273.4,3.2078]
[1736530445469,0.30549,3274.0,3273.9,0.30548]
[1736530446065,3.2078,3274.2,3274.0,0.30547]
[1736530446066,0.30547,3274.1,3274.0,0.30547]
[1736530446463,0.4619,3274.4,3273.8,0.76375]
[1736530446767,0.4619,3274.4,3273.6,40.8]
[1736530446963,0.30551,3273.8,3273.7,0.3055]
[1736530447171,0.30551,3273.7,3273.6,40.8]
[1736530447468,3.51331,3273.7,3273.6,40.8]
[1736530449467,3.2078,3273.7,3273.6,41.10552]
[1736530449656,3.51331,3273.7,3273.6,40.8]
[1736530449858,3.2078,3273.7,3273.6,41.10552]
[1736530450261,3.2078,3274.1,3273.6,40.8]
[1736530450466,0.30549,3274.0,3273.6,40.8]
[1736530450667,3.2078,3274.1,3274.0,0.30548]
[1736530451365,3.51327,3274.1,3274.0,0.30548]
[1736530451664,0.4446,3274.3,3274.0,0.30548]
[1736530451873,0.30548,3274.0,3273.9,0.30548]
[1736530452071,3.2078,3274.2,3274.0,0.30548]
[1736530452370,3.51326,3274.2,3274.0,0.30548]
[1736530452671,3.51326,3274.2,3273.9,0.30548]
[1736530452672,0.30547,3274.1,3273.9,0.30548]
[1736530452969,0.30549,3273.9,3273.7,0.3055]
[1736530453265,3.2078,3274.2,3273.6,40.8]
[1736530453569,0.30548,3274.0,3273.6,40.8]
[1736530453771,0.30548,3274.0,3273.8,0.30549]
[1736530453967,3.2078,3274.2,3273.6,40.8]
[1736530454267,0.30548,3274.0,3273.6,40.8]
[1736530454563,3.2078,3274.2,3273.6,40.8]
[1736530454564,3.2078,3273.8,3273.6,40.8]
[1736530454765,0.30551,3273.7,3273.6,40.8]
[1736530455170,3.2078,3273.8,3273.2,0.30555]
[1736530455171,0.30555,3273.3,3273.2,0.30555]
[1736530455469,0.30556,3273.2,3273.0,0.30557]
[1736530455764,0.30556,3273.2,3272.8,3.2078]
[1736530455765,0.30555,3273.3,3273.1,40.8]
[1736530455970,0.30555,3273.3,3273.1,41.10556]
[1736530456167,0.4553,3273.5,3273.1,40.8]
[1736530456368,0.30555,3273.3,3273.1,40.8]
[1736530456567,0.4553,3273.5,3273.1,40.8]
[1736530456765,0.30562,3272.6,3271.7,3.2078]
[1736530457066,1.357,3273.4,3272.1,0.30565]
[1736530457067,0.30563,3272.4,3272.1,0.30565]
[1736530457273,0.926,3272.5,3272.2,40.8]
[1736530457473,0.30564,3272.3,3272.2,40.8]
[1736530458470,3.51344,3272.3,3272.2,40.8]
[1736530458871,3.2078,3272.3,3272.2,40.8]
[1736530459071,0.926,3272.5,3272.2,40.8]
[1736530459568,3.2078,3272.7,3272.6,0.30561]
[1736530459771,3.5134,3272.7,3272.5,0.30561]
[1736530459970,0.30561,3272.6,3272.2,41.10564]
[1736530460163,3.2078,3272.7,3272.2,40.8]
[1736530460468,0.4471,3272.6,3272.2,40.8]
[1736530460670,0.30564,3272.3,3272.2,40.8]
[1736530461374,0.30562,3272.5,3272.3,0.30563]
[1736530461667,3.5134,3272.7,3272.5,0.30561]
[1736530461867,3.5134,3272.7,3272.6,0.30561]
[1736530461868,3.2078,3272.7,3272.6,0.30561]
[1736530462073,0.4542,3273.1,3272.4,0.30563]
[1736530462370,0.4608,3273.2,3272.5,0.76403]
[1736530462577,3.2078,3273.3,3273.0,40.8]
[1736530462783,3.2078,3273.3,3273.2,0.30555]
[1736530462968,0.77693,3273.5,3273.4,0.30553]
[1736530463280,0.30553,3273.4,3273.3,0.30554]
[1736530463466,3.2078,3273.8,3273.0,40.8]
[1736530463771,3.5133,3273.8,3273.6,0.30551]
[1736530464079,0.30551,3273.7,3273.5,0.30552]
[1736530464367,0.30552,3273.6,3273.1,0.4676]
[1736530464568,3.2078,3273.8,3273.1,0.4676]
[1736530464774,3.2078,3273.8,3273.1,3.2078]
[1736530464975,3.2078,3273.8,3273.0,40.8]
[1736530464976,0.7638,3273.6,3273.0,40.8]
[1736530465275,0.30556,3273.1,3273.0,41.10557]
[1736530465575,0.26906,3273.1,3273.0,41.10557]
[1736530465875,0.4789,3273.5,3273.0,40.8]
[1736530466076,0.78443,3273.5,3273.0,40.8]
[1736530466372,3.2078,3273.7,3273.1,0.76391]
[1736530466569,3.2078,3273.7,3273.4,0.30553]
[1736530466769,0.30552,3273.6,3273.1,0.4319]
[1736530466965,3.2078,3273.7,3273.1,0.4319]
[1736530467372,0.30553,3273.5,3273.4,0.30553]
[1736530467773,3.2078,3273.7,3273.1,0.4319]
[1736530467965,0.30552,3273.6,3273.5,0.30552]
[1736530468474,0.30552,3273.6,3273.1,0.4319]
[1736530468475,0.30551,3273.7,3273.6,0.30552]
[1736530468770,5.70293116,3306.2,3274.5,0.30543]
[1736530468771,11.9219746,3274.6,3274.5,0.30543]
[1736530469079,11.26405988,3274.6,3274.5,0.30543]
[1736530469285,7.99700101,3274.6,3274.5,41.10543]
[1736530469577,3.2078,3275.3,3274.5,40.8]
[1736530469876,3.2078,3275.3,3275.1,0.30537]
[1736530470075,3.51316,3275.3,3275.1,0.30537]
[1736530470282,0.75254,3275.5,3274.7,3.2078]
[1736530470480,0.4472,3275.5,3274.7,6.07277954]
[1736530470776,0.30535,3275.4,3275.2,0.30536]
[1736530470981,0.75254,3275.5,3275.3,0.30535]
[1736530471572,0.75254,3275.5,3274.7,6.07277954]
[1736530471573,0.75254,3275.5,3275.4,0.30535]
[1736530471774,0.4347,3275.7,3275.5,0.30533]
[1736530472072,0.74002,3275.7,3275.5,0.30533]
[1736530472275,0.4347,3275.7,3275.1,3.2078]
[1736530472667,0.30533,3275.6,3275.1,3.2078]
[1736530472981,0.74002,3275.7,3275.5,0.30534]
[1736530473177,0.4347,3275.7,3275.1,3.2078]
[1736530473379,0.30536,3275.3,3275.1,3.51317]
[1736530473581,3.2078,3275.4,3274.5,40.8]
[1736530473875,0.30544,3274.5,3274.0,0.4725]
[1736530474073,3.2078,3274.6,3274.0,0.4725]
[1736530474275,0.30545,3274.4,3274.2,0.30546]
[1736530474480,0.4535,3274.5,3274.0,0.30547]
[1736530474675,0.4535,3274.5,3273.6,0.70955461]
[1736530474676,0.30546,3274.3,3274.1,0.30546]
[1736530474979,4.5648,3274.2,3273.4,3.2078]
[1736530475181,0.30548,3274.0,3273.8,0.30549]
[1736530475477,0.30548,3274.0,3273.4,3.2078]
[1736530475679,0.30548,3274.0,3273.7,0.3055]
[1736530475884,0.30547,3274.1,3273.4,3.2078]
[1736530476084,4.5648,3274.2,3273.4,3.2078]
[1736530476375,1.357,3274.2,3274.1,0.30547]
[1736530476984,1.357,3274.2,3273.6,0.7638]
[1736530477175,4.5648,3274.2,3273.4,3.97164]
[1736530477378,4.5648,3274.2,3273.4,3.2078]
[1736530477584,0.30547,3274.1,3273.9,0.30548]
[1736530477882,4.5648,3274.2,3274.1,0.30547]
[1736530478484,3.2078,3274.2,3274.1,0.30547]
[1736530479082,0.4535,3274.5,3273.8,3.2078]
[1736530479589,0.4535,3274.5,3274.4,0.30544]
[1736530479786,3.2078,3274.6,3274.5,0.30543]
[1736530480179,3.2078,3274.6,3274.5,41.10543]
[1736530480381,3.2078,3275.4,3274.5,40.8]
[1736530480583,4.69847954,3275.8,3275.0,3.2078]
[1736530480886,1.8335,3275.8,3275.3,0.30535]
[1736530481086,0.30532,3275.7,3275.3,0.30535]
[1736530481284,1.8335,3275.8,3275.4,0.30534]
[1736530481486,1.8335,3275.8,3275.0,3.2078]
[1736530481682,0.4396,3275.7,3275.0,3.2078]
[1736530481889,0.30537,3275.2,3275.0,3.2078]
[1736530482093,0.30538,3275.1,3275.0,3.2078]
[1736530482284,0.30538,3275.1,3274.6,0.4691]
[1736530482285,3.2078,3275.1,3274.6,0.4691]
[1736530482484,0.30539,3275.0,3274.6,0.4691]
[1736530482684,0.30539,3275.0,3274.7,0.30541]
[1736530482891,0.3054,3274.9,3274.7,0.30541]
[1736530483191,0.4634,3275.0,3274.8,0.3054]
[1736530483493,0.4634,3275.0,3274.9,0.30539]
[1736530483696,0.76878,3275.0,3274.8,0.30539]
[1736530483894,0.76878,3275.0,3274.5,40.8]
[1736530484190,3.51318,3275.1,3274.9,0.30539]
[1736530484590,0.30538,3275.0,3274.9,0.30539]
[1736530484792,3.51318,3275.1,3274.9,0.30539]
[1736530485191,3.51318,3275.1,3274.5,40.8]
[1736530485385,3.51318,3275.1,3275.0,0.30538]
[1736530486791,0.30538,3275.0,3274.9,0.30539]
[1736530487292,0.30538,3275.0,3274.5,40.8]
[1736530487488,0.3054,3274.9,3274.8,0.3054]
[1736530487694,3.2078,3275.1,3274.6,0.30542]
[1736530487695,0.30541,3274.8,3274.6,0.30542]
[1736530487993,0.30541,3274.8,3274.5,40.8]
[1736530487994,0.30541,3274.8,3274.7,0.30541]
[1736530488390,0.4513,3275.0,3274.2,3.2078]
[1736530488590,3.2078,3274.6,3273.7,0.4652]
[1736530488791,0.30548,3274.1,3273.9,0.30548]
[1736530489090,0.30548,3274.1,3274.0,0.30548]
[1736530489487,3.2078,3274.2,3274.1,0.30547]
[1736530489894,3.2078,3274.2,3273.8,40.8]
[1736530490395,0.30552,3273.6,3273.5,3.2078]
[1736530490788,3.2078,3273.6,3273.5,40.8]
[1736530490990,3.51332,3273.6,3273.5,40.8]
[1736530491298,0.4793,3273.9,3273.8,0.3055]
[1736530491688,0.4385,3274.1,3274.0,0.30548]
[1736530492091,3.2078,3274.2,3274.1,0.30547]
[1736530492492,0.4798,3274.6,3274.5,0.30543]
[1736530492803,0.4373,3274.8,3274.7,0.30541]
[1736530492988,3.2078,3274.9,3274.5,40.8]
[1736530493195,0.4798,3275.3,3275.2,0.30537]
[1736530493694,3.5131,3275.9,3275.7,0.30531]
[1736530493893,0.30537,3275.2,3275.1,3.2078]
[1736530494085,0.30542,3274.6,3274.4,0.30544]
[1736530494288,0.30541,3274.7,3274.5,0.30543]
[1736530494494,0.30543,3274.5,3274.3,0.30544]
[1736530494793,3.2078,3274.6,3273.7,0.9479]
[1736530495098,3.51323,3274.6,3274.4,0.30543]
[1736530495397,0.30544,3274.5,3274.4,40.8]
[1736530495788,3.2078,3274.6,3274.4,41.10544]
[1736530495993,3.51323,3274.6,3274.4,41.10544]
[1736530496589,3.2078,3274.6,3274.4,41.10544]
[1736530497188,3.2078,3274.6,3274.4,40.8]
[1736530497393,3.2078,3274.6,3274.5,0.30543]
[1736530499199,3.2078,3274.6,3274.1,2.86497954]
[1736530499395,3.2078,3274.6,3274.5,0.30543]
[1736530499897,3.2078,3274.6,3274.5,41.10543]
[1736530500289,3.2078,3275.0,3274.8,0.3054]
[1736530500494,3.2078,3275.0,3273.8,3.2078]
[1736530500798,0.30544,3274.5,3274.3,0.30544]
[1736530501199,0.30544,3274.5,3273.9,40.8]
[1736530501200,3.2078,3274.6,3273.9,40.8]
[1736530501404,0.4593,3274.4,3274.0,0.30547]
[1736530501603,0.30546,3274.2,3274.0,0.30547]
[1736530501792,0.76475,3274.4,3273.9,40.8]
[1736530501992,0.76475,3274.4,3274.2,0.30545]
[1736530502189,0.4593,3274.4,3273.9,40.8]
[1736530502393,0.76475,3274.4,3273.9,40.8]
[1736530502595,0.4593,3274.4,3273.9,40.8]
[1736530502799,0.76475,3274.4,3274.2,0.30546]
[1736530502999,3.2078,3274.6,3273.9,40.8]
[1736530503204,0.30541,3274.8,3274.6,0.30542]
[1736530503401,3.6671,3275.0,3274.0,0.30548]
[1736530503402,0.30544,3274.5,3274.0,0.30548]
[1736530503596,3.6671,3275.0,3274.9,0.30539]
[1736530503798,3.2078,3275.5,3275.4,0.30535]
[1736530504198,3.2078,3275.5,3274.8,1.21742]
[1736530504398,3.2078,3275.5,3274.9,40.8]
[1736530504608,0.30537,3275.2,3275.0,0.30538]
[1736530504906,3.2078,3275.5,3274.9,41.10539]
[1736530504907,0.30538,3275.1,3274.9,41.10539]
[1736530505094,3.2078,3275.1,3274.9,40.8]
[1736530505301,0.30542,3274.7,3274.5,0.30542]
[1736530505600,0.30542,3274.7,3273.9,3.6505]
[1736530505601,3.2078,3274.6,3273.9,3.2078]
[1736530505900,0.30545,3274.4,3274.1,0.30547]
[1736530506106,3.2078,3274.6,3274.1,0.30547]
[1736530506299,0.30546,3274.2,3274.0,40.8]
[1736530506508,4.5638,3274.2,3272.9,2.86497954]
[1736530506805,0.3055,3273.8,3273.6,0.30551]